bitfinex-derivatives/quotes_ETHF0:USTF0_20250106
["timestamp","ask_amount","ask_price","bid_price","bid_amount"]
[1736122314337,3.2078,3647.6,3647.2,2.20888557]
[1736122314533,3.2078,3647.6,3647.4,0.2468]
[1736122314837,3.2078,3647.6,3647.2,2.20888557]
[1736122315340,0.24682,3647.1,3646.9,2.20888557]
[1736122315537,0.8554,3647.0,3646.9,2.45571557]
[1736122316238,0.8554,3647.0,3646.9,2.20888557]
[1736122316737,0.8554,3647.0,3646.9,2.45571557]
[1736122317838,0.8554,3647.0,3646.9,2.20888557]
[1736122320756,0.85752183,3647.0,3646.9,2.20888557]
[1736122322553,0.85752183,3647.0,3646.8,1.069]
[1736122322554,1.10435183,3647.0,3646.8,1.069]
[1736122322853,0.24684,3646.9,3646.6,2.20888557]
[1736122323048,0.85752183,3647.0,3646.6,2.20888557]
[1736122323254,0.24684,3646.8,3646.6,2.20888557]
[1736122323845,0.85752183,3647.0,3646.3,2.20888557]
[1736122324152,3.2078,3646.7,3646.0,2.20888557]
[1736122324351,0.24688,3646.2,3645.9,1.069]
[1736122324546,1.11149,3646.1,3645.9,1.069]
[1736122325049,0.8646,3646.1,3646.0,2.20888557]
[1736122328056,0.8646,3646.1,3645.7,2.45579557]
[1736122328057,1.11149,3646.1,3645.7,2.45579557]
[1736122328356,3.2078,3645.9,3645.4,2.20888557]
[1736122328653,0.24692,3645.6,3645.1,2.45583557]
[1736122328851,3.45474,3645.4,3645.0,4.27564017]
[1736122329051,0.8404,3645.3,3645.0,4.27564017]
[1736122329258,1.08734,3645.3,3645.0,4.27564017]
[1736122329651,0.8404,3645.3,3645.0,4.52260017]
[1736122329845,0.8404,3645.3,3645.1,2.20888557]
[1736122331154,0.4148,3645.3,3645.2,0.24695]
[1736122331357,0.4148,3645.3,3645.1,2.20888557]
[1736122331551,0.8437,3645.3,3645.1,2.20888557]
[1736122332861,3.2078,3645.8,3645.1,2.20888557]
[1736122333055,3.2078,3645.8,3645.7,2.20888557]
[1736122333363,3.2078,3645.8,3645.1,2.20888557]
[1736122333561,3.45474,3645.4,3645.1,2.20888557]
[1736122333762,0.8461,3645.3,3645.1,2.20888557]
[1736122333958,0.8461,3645.3,3645.2,0.24695]
[1736122334154,0.421,3645.3,3645.2,0.24695]
[1736122334353,0.421,3645.3,3645.1,2.20888557]
[1736122334661,0.421,3645.3,3645.1,2.45583557]
[1736122335157,0.421,3645.3,3645.1,2.20888557]
[1736122335555,0.421,3645.3,3644.8,2.20888557]
[1736122335761,0.421,3645.3,3644.8,2.45585557]
[1736122336363,0.421,3645.3,3644.9,0.24697]
[1736122337853,0.421,3645.3,3644.8,2.20888557]
[1736122338062,0.421,3645.3,3645.1,2.20888557]
[1736122338764,0.4251,3645.7,3645.5,0.24692]
[1736122338965,0.4251,3645.7,3645.4,0.24693]
[1736122339456,3.2078,3645.9,3645.4,2.20888557]
[1736122339656,3.2078,3645.9,3645.8,0.24691]
[1736122341560,3.2078,3645.9,3645.4,2.20888557]
[1736122341762,0.24691,3645.7,3645.4,2.20888557]
[1736122342067,0.24691,3645.8,3645.4,2.45581557]
[1736122342364,0.4124,3645.6,3645.4,2.45581557]
[1736122342561,0.4124,3645.6,3645.4,2.20888557]
[1736122342958,3.2078,3645.5,3645.1,2.20888557]
[1736122343165,0.24693,3645.4,3645.1,2.20888557]
[1736122343357,0.24693,3645.4,3645.1,2.45583557]
[1736122343358,0.4077,3645.3,3645.1,2.45583557]
[1736122343970,0.65463,3645.3,3645.1,2.20888557]
[1736122344668,0.24696,3645.0,3644.6,0.24698]
[1736122344869,3.45476,3645.0,3644.5,6.48968557]
[1736122345074,0.415,3644.9,3644.8,2.20888557]
[1736122345367,0.415,3644.9,3644.8,2.45585557]
[1736122345664,3.2078,3645.7,3644.8,2.20888557]
[1736122345864,3.6554,3645.7,3645.6,0.24691]
[1736122347272,3.6554,3645.7,3645.5,2.20888557]
[1736122347666,3.6554,3645.7,3645.6,0.24691]
[1736122347972,3.2078,3645.7,3645.6,0.24691]
[1736122348265,3.2078,3645.7,3645.6,1.09921]
[1736122349170,3.2078,3645.7,3645.5,0.24692]
[1736122349473,0.4408,3645.6,3645.4,0.24692]
[1736122349674,0.8865,3645.6,3645.4,0.24692]
[1736122350167,0.8865,3645.6,3645.2,1.073]
[1736122350368,1.13341,3645.6,3645.2,1.31994]
[1736122350570,0.8865,3645.6,3645.2,1.31994]
[1736122350770,0.24692,3645.5,3645.2,1.31994]
[1736122351168,0.8865,3645.6,3645.1,2.20888557]
[1736122351368,3.2078,3645.3,3645.1,2.20888557]
[1736122351575,3.2078,3645.3,3645.1,2.45583557]
[1736122352072,3.2078,3645.3,3645.2,0.24694]
[1736122353071,0.4358,3646.1,3645.6,0.24691]
[1736122353072,3.2078,3645.7,3645.6,0.24691]
[1736122353275,3.2078,3645.7,3645.6,2.45579557]
[1736122353472,3.2078,3645.7,3645.6,2.20888557]
[1736122353672,3.2078,3645.7,3645.6,2.45579557]
[1736122353874,0.68149,3646.0,3645.6,2.45579557]
[1736122354677,0.68149,3646.0,3645.7,0.24691]
[1736122354876,0.68149,3646.0,3645.6,2.45579557]
[1736122355175,0.68149,3646.0,3645.7,0.2469]
[1736122355770,0.4346,3646.0,3645.6,2.20888557]
[1736122355976,0.2469,3645.9,3645.6,2.45579557]
[1736122356373,0.4346,3646.0,3645.6,2.20888557]
[1736122356374,0.24691,3645.8,3645.6,2.20888557]
[1736122356575,0.2469,3645.8,3645.6,2.20888557]
[1736122356773,0.2469,3645.8,3645.6,2.45579557]
[1736122356973,0.2469,3645.8,3645.6,2.20888557]
[1736122357172,0.2469,3645.8,3645.5,0.24692]
[1736122357373,3.2078,3645.6,3645.3,2.20888557]
[1736122357573,3.2078,3645.6,3645.4,0.24692]
[1736122357769,3.2078,3645.6,3645.3,2.20888557]
[1736122357978,3.2078,3645.6,3645.4,0.24693]
[1736122358281,3.2078,3645.6,3645.3,2.20888557]
[1736122358480,3.2078,3645.6,3645.5,0.24692]
[1736122359382,3.2078,3645.6,3645.3,2.20888557]
[1736122359582,3.2078,3645.6,3645.4,0.24692]
[1736122360077,3.2078,3645.6,3645.3,2.20888557]
[1736122360287,3.2078,3645.6,3645.3,2.45581557]
[1736122360584,3.2078,3645.6,3645.4,0.24693]
[1736122361279,3.45471,3645.6,3645.3,2.45581557]
[1736122361485,3.2078,3645.6,3645.3,2.45581557]
[1736122361776,3.2078,3645.6,3645.0,3.28188557]
[1736122361976,0.4287,3645.5,3645.0,2.20888557]
[1736122362178,0.68103,3645.4,3645.1,0.24695]
[1736122362376,0.68103,3645.4,3645.0,2.20888557]
[1736122362377,1.11363,3645.4,3645.0,2.45583557]
[1736122362678,1.11363,3645.4,3645.1,0.24694]
[1736122363880,0.8667,3645.4,3645.1,0.24694]
[1736122364183,0.8667,3645.4,3645.0,2.20888557]
[1736122364384,0.8667,3645.4,3645.3,0.24693]
[1736122364978,0.8667,3645.4,3645.2,0.24694]
[1736122365579,0.8667,3645.4,3645.0,2.20888557]
[1736122365786,0.8667,3645.4,3645.3,0.24693]
[1736122366082,0.4341,3645.4,3645.3,2.45581557]
[1736122366284,3.2078,3645.6,3645.4,0.24693]
[1736122366485,3.2078,3645.6,3645.4,0.69393]
[1736122366685,3.2078,3645.6,3645.5,0.24692]
[1736122367186,3.2078,3645.6,3645.5,1.31992]
[1736122367375,3.21924724,3645.8,3645.7,0.24691]
[1736122367687,6.42704724,3646.1,3645.8,0.2469]
[1736122368187,6.87644724,3646.1,3645.8,0.2469]
[1736122368577,6.87644724,3646.1,3645.7,2.20888557]
[1736122368779,6.87644724,3646.1,3645.8,0.2469]
[1736122368978,3.6572,3646.1,3645.8,0.2469]
[1736122369485,3.6572,3646.1,3645.7,2.20888557]
[1736122369785,3.6572,3646.1,3645.7,2.45579557]
[1736122369786,0.24689,3646.0,3645.7,2.45579557]
[1736122369979,0.432,3645.9,3645.7,2.45579557]
[1736122370783,0.432,3645.9,3645.7,2.20888557]
[1736122371380,0.24691,3645.7,3645.4,7.55752574]
[1736122371585,3.45471,3645.6,3645.4,5.34864017]
[1736122371786,3.6337,3645.6,3645.4,5.34864017]
[1736122372394,6.85294724,3645.6,3645.4,1.31993]
[1736122372581,6.85294724,3645.6,3645.4,3.52881557]
[1736122373084,6.85294724,3645.6,3645.4,3.28188557]
[1736122373485,7.09986724,3645.6,3645.4,3.28188557]
[1736122373682,3.21924724,3645.5,3645.4,3.28188557]
[1736122374486,3.21924724,3645.5,3645.4,1.073]
[1736122374679,3.21924724,3645.5,3645.1,6.73146574]
[1736122374878,3.46616724,3645.5,3645.2,0.24694]
[1736122375985,3.21924724,3645.5,3645.1,6.73147574]
[1736122376185,0.24693,3645.4,3645.1,6.73147574]
[1736122376384,3.21924724,3645.5,3645.1,6.48452574]
[1736122376689,3.21924724,3645.5,3645.0,6.48311582]
[1736122376690,3.2078,3645.2,3645.0,4.27564017]
[1736122376884,0.66325,3645.1,3645.0,4.27564017]
[1736122377185,1.51345,3645.1,3645.0,4.27564017]
[1736122377885,0.24698,3644.7,3644.5,9.69232574]
[1736122378282,0.4114,3644.6,3644.5,9.69232574]
[1736122378788,0.65838,3644.6,3644.5,6.48452574]
[1736122378991,0.4114,3644.6,3644.5,6.48452574]
[1736122379283,0.65838,3644.6,3644.5,4.27564017]
[1736122379480,0.4114,3644.6,3644.4,0.24699]
[1736122379883,0.65838,3644.6,3644.4,0.24699]
[1736122380085,0.4114,3644.6,3644.4,0.24699]
[1736122380281,0.4114,3644.6,3644.3,4.27564017]
[1736122380486,0.247,3644.4,3644.3,4.27564017]
[1736122380689,0.247,3644.3,3644.2,4.27564017]
[1736122380888,3.8628,3644.3,3644.2,4.27564017]
[1736122382089,7.93054221,3644.3,3643.6,2.20888557]
[1736122382284,0.4473,3644.2,3643.5,4.27564017]
[1736122383083,0.24702,3644.1,3643.5,4.27564017]
[1736122383383,3.67818909,3644.2,3643.3,2.62878557]
[1736122383587,3.2078,3643.9,3643.3,2.20888557]
[1736122383888,0.24705,3643.6,3643.3,2.20888557]
[1736122384085,0.24706,3643.6,3643.3,2.20888557]
[1736122384286,3.2078,3643.9,3643.3,2.20888557]
[1736122384287,0.65316,3643.5,3643.3,2.20888557]
[1736122384586,0.4061,3643.5,3643.3,2.20888557]
[1736122385191,0.4061,3643.5,3643.3,2.45594557]
[1736122385792,0.24704,3643.7,3643.3,2.45594557]
[1736122385985,0.4445,3643.6,3643.3,2.45594557]
[1736122386489,0.4445,3643.6,3643.4,0.24706]
[1736122387887,3.45483,3643.9,3643.3,2.20888557]
[1736122388191,0.24704,3643.8,3643.6,2.20888557]
[1736122389693,3.2078,3643.9,3643.6,2.20888557]
[1736122389885,0.24704,3643.7,3643.6,2.20888557]
[1736122392189,3.2078,3643.9,3643.6,2.20888557]
[1736122392997,0.24704,3643.7,3643.6,2.20888557]
[1736122393397,3.2078,3643.9,3643.6,2.20888557]
[1736122393694,3.45483,3643.9,3643.6,2.20888557]
[1736122393890,3.45483,3643.9,3643.7,0.24704]
[1736122394488,3.45483,3643.9,3643.6,2.20888557]
[1736122394687,3.45483,3643.9,3643.6,2.45593557]
[1736122395594,3.2078,3643.9,3643.6,2.20888557]
[1736122395794,0.24704,3643.7,3643.6,2.20888557]
[1736122396196,0.24704,3643.7,3643.5,0.24705]
[1736122397097,3.2078,3643.9,3643.4,2.20888557]
[1736122397292,0.24707,3643.4,3643.1,5.66376557]
[1736122397594,3.2078,3643.9,3643.2,0.24707]
[1736122398298,0.24706,3643.5,3643.2,0.24707]
[1736122398599,0.24707,3643.3,3643.1,5.66376557]
[1736122398899,3.2078,3643.4,3643.1,2.20888557]
[1736122399099,1.13708,3643.3,3643.1,2.20888557]
[1736122399299,1.13708,3643.3,3643.1,2.45596557]
[1736122399691,0.2471,3642.9,3642.6,0.66912]
[1736122399892,0.2471,3642.9,3642.6,0.66911]
[1736122399893,3.4549,3642.9,3642.6,0.66911]
[1736122400693,0.24711,3642.7,3642.5,2.45600557]
[1736122400992,0.24711,3642.8,3642.5,2.45600557]
[1736122401192,3.2078,3642.9,3642.5,2.20888557]
[1736122401398,0.24712,3642.6,3642.5,2.20888557]
[1736122402003,0.2471,3642.8,3642.5,2.45600557]
[1736122402302,0.2471,3642.8,3642.5,2.20888557]
[1736122402698,0.2471,3642.8,3642.5,2.45600557]
[1736122402894,3.4549,3642.9,3642.7,0.24711]
[1736122403099,3.2078,3642.9,3642.7,0.24711]
[1736122404603,3.2078,3642.9,3642.5,2.20888557]
[1736122404805,0.24711,3642.8,3642.6,0.24712]
[1736122405406,0.24712,3642.6,3642.5,2.20888557]
[1736122406001,0.24709,3643.1,3642.8,0.2471]
[1736122406206,3.90087,3643.3,3643.1,0.24708]
[1736122406405,3.6538,3643.3,3643.0,2.20888557]
[1736122406703,0.24708,3643.2,3643.1,0.8411]
[1736122407103,3.6538,3643.3,3643.1,0.8411]
[1736122407308,3.6538,3643.3,3643.1,1.08818]
[1736122407804,3.6538,3643.3,3643.2,0.24708]
[1736122409512,3.2078,3643.3,3643.2,0.24708]
[1736122411004,3.2078,3643.8,3643.7,0.24704]
[1736122411905,3.2078,3643.8,3643.6,2.20888557]
[1736122412110,3.45484,3643.8,3643.6,2.45593557]
[1736122412703,3.45484,3643.8,3643.6,2.20888557]
[1736122413007,0.24704,3643.7,3643.6,2.20888557]
[1736122413404,3.2078,3643.8,3643.6,2.20888557]
[1736122413703,0.24704,3643.7,3643.6,2.20888557]
[1736122413909,0.24704,3643.7,3643.4,0.24706]
[1736122414311,0.24704,3643.7,3643.3,2.20888557]
[1736122414615,0.24704,3643.7,3643.5,0.24705]
[1736122414808,3.45484,3643.8,3643.5,0.24705]
[1736122415009,3.45484,3643.8,3643.6,0.24705]
[1736122416411,0.24705,3643.7,3643.5,0.24706]
[1736122417311,3.2078,3643.8,3643.3,2.20888557]
[1736122418107,0.24705,3643.7,3643.4,0.24706]
[1736122418907,0.24704,3643.7,3643.4,0.24706]
[1736122420011,3.2078,3643.8,3643.3,2.20888557]
[1736122420219,0.24705,3643.6,3643.4,0.24706]
[1736122420810,0.24705,3643.6,3643.3,2.20888557]
[1736122421109,3.2078,3643.8,3643.3,2.20888557]
[1736122421319,0.24706,3643.5,3643.3,2.45595557]
[1736122421814,0.4355,3643.4,3643.3,2.45595557]
[1736122422612,3.6433,3643.4,3642.9,4.27564017]
[1736122422813,0.24708,3643.2,3642.9,4.52274017]
[1736122423409,0.8945,3643.3,3642.8,4.27564017]
[1736122423613,0.24709,3643.1,3642.8,4.52274017]
[1736122424319,0.8945,3643.3,3642.8,4.27564017]
[1736122424510,0.24708,3643.2,3642.9,0.24709]
[1736122424709,2.39104894,3643.2,3642.9,0.24709]
[1736122425615,2.39104894,3643.2,3643.0,2.20888557]
[1736122427019,2.14396894,3643.2,3643.0,2.45597557]
[1736122427319,3.28553894,3643.3,3643.0,2.45597557]
[1736122429618,2.14396894,3643.2,3643.0,2.45597557]
[1736122430119,2.39104894,3643.2,3643.0,2.20888557]
[1736122430313,2.14396894,3643.2,3643.0,2.45597557]
[1736122430517,2.39104894,3643.2,3643.0,2.20888557]
[1736122430813,2.39104894,3643.2,3643.0,0.24709]
[1736122431617,2.14396894,3643.2,3642.9,4.27564017]
[1736122431814,2.14396894,3643.2,3643.0,0.24709]
[1736122432118,2.14396894,3643.1,3643.0,0.24709]
[1736122433420,2.14396894,3643.1,3642.7,7.55952574]
[1736122433421,2.14396894,3643.2,3642.8,4.27564017]
[1736122433624,2.14396894,3643.2,3643.0,0.24709]
[1736122433820,2.14396894,3643.2,3642.8,4.27564017]
[1736122434209,2.14396894,3643.2,3643.0,0.24709]
[1736122434513,2.14396894,3643.1,3643.0,0.24709]
[1736122436519,2.14396894,3643.2,3643.0,0.24709]
[1736122436726,2.14396894,3643.2,3643.1,0.24708]
[1736122437220,2.14396894,3643.2,3642.8,4.27564017]
[1736122437618,2.14396894,3643.2,3643.1,0.24708]
[1736122439220,2.14396894,3643.2,3642.9,4.27564017]
[1736122439424,4.12538909,3643.3,3643.1,0.24708]
[1736122440119,4.12538909,3643.3,3642.8,4.27564017]
[1736122440525,0.24708,3643.2,3642.9,0.24709]
[1736122440728,3.2078,3643.0,3642.9,0.2471]
[1736122441220,3.2078,3643.0,3642.8,4.27564017]
[1736122441221,3.4549,3643.0,3642.8,4.27564017]
[1736122441423,0.6579,3642.9,3642.8,4.27564017]
[1736122441718,0.4108,3642.9,3642.7,4.27564017]
[1736122441926,0.2471,3642.8,3642.7,4.27564017]
[1736122442321,0.6579,3642.9,3642.7,4.27564017]
[1736122442923,0.2471,3642.8,3642.7,4.27564017]
[1736122443429,0.4108,3642.9,3642.3,0.24714]
[1736122443430,0.24713,3642.5,3642.3,0.24714]
[1736122443629,0.66263,3642.4,3642.2,4.27564017]
[1736122444830,2.81991087,3642.4,3642.2,0.24714]
[1736122445031,2.57278087,3642.4,3642.2,0.24714]
[1736122446933,2.57278087,3642.4,3641.9,6.48452574]
[1736122447126,2.57278087,3642.4,3642.3,0.24714]
[1736122447327,2.81992087,3642.4,3641.9,6.48452574]
[1736122447527,2.81992087,3642.4,3642.2,0.24714]
[1736122447835,0.66264,3642.4,3641.9,6.48452574]
[1736122448531,0.4155,3642.4,3642.2,0.24714]
[1736122449529,0.24714,3642.3,3642.0,0.24716]
[1736122449732,0.4155,3642.4,3641.9,2.20888557]
[1736122450123,0.66263,3642.4,3642.1,0.24715]
[1736122450330,0.66263,3642.4,3642.2,0.24715]
[1736122450726,0.4155,3642.4,3642.2,0.24715]
[1736122451733,0.4155,3642.4,3642.3,0.24714]
[1736122452126,0.4155,3642.4,3642.2,0.24714]
[1736122453433,0.66264,3642.4,3642.1,0.24715]
[1736122453628,0.66264,3642.4,3642.2,0.24715]
[1736122454232,0.4155,3642.4,3641.9,2.20888557]
[1736122454830,0.4155,3642.4,3642.0,0.24716]
[1736122455031,0.66264,3642.4,3642.2,0.24714]
[1736122455638,0.66264,3642.4,3642.2,0.24715]
[1736122456032,0.24714,3642.3,3642.1,0.24715]
[1736122456334,0.66264,3642.4,3642.2,0.24715]
[1736122458440,0.4155,3642.4,3641.9,2.20888557]
[1736122458736,0.66264,3642.4,3642.2,0.24715]
[1736122458933,0.4155,3642.4,3642.2,0.24715]
[1736122459235,0.24714,3642.3,3642.1,0.24715]
[1736122459431,0.24714,3642.3,3641.6,4.27564017]
[1736122459432,3.2078,3642.2,3641.6,4.27564017]
[1736122459742,3.45498,3641.7,3641.6,4.27564017]
[1736122460633,3.45498,3641.7,3641.3,0.24721]
[1736122460634,0.24719,3641.6,3641.3,0.24721]
[1736122460833,0.4177,3641.5,3641.3,0.24721]
[1736122461034,0.6649,3641.5,3641.2,0.24721]
[1736122461326,3.2078,3641.3,3641.0,0.4094]
[1736122461530,3.2078,3641.3,3641.1,0.24722]
[1736122461739,3.45501,3641.3,3641.1,0.24722]
[1736122462344,0.4263,3641.2,3641.1,0.24722]
[1736122462531,0.4263,3641.2,3641.0,0.65663]
[1736122462731,0.4263,3641.2,3641.1,0.24722]
[1736122462936,0.67352,3641.2,3640.9,0.24723]
[1736122463131,0.4263,3641.2,3640.8,0.4093]
[1736122463740,0.4263,3641.2,3641.0,0.24723]
[1736122465135,0.4263,3641.2,3640.8,0.4093]
[1736122465343,0.24722,3641.1,3640.8,0.65654]
[1736122465543,3.2078,3640.9,3640.7,0.24725]
[1736122465739,3.2078,3640.9,3640.5,2.63338557]
[1736122465947,3.2078,3641.3,3640.8,2.20888557]
[1736122466139,3.2078,3641.3,3641.2,0.24722]
[1736122466543,3.2078,3641.3,3641.2,36.37172]
[1736122466844,3.2078,3641.3,3641.2,0.67172]
[1736122467238,3.2078,3641.3,3641.2,0.4245]
[1736122467739,3.2078,3641.3,3641.2,0.67172]
[1736122468741,3.6548,3641.4,3641.2,0.67172]
[1736122468935,3.6548,3641.4,3641.2,0.4245]
[1736122469237,3.6548,3641.4,3641.1,0.24722]
[1736122469438,3.6548,3641.4,3641.1,0.65512]
[1736122470448,0.24721,3641.3,3641.1,0.4079]
[1736122471148,0.24721,3641.3,3640.9,2.64268557]
[1736122471346,3.2078,3641.0,3640.8,0.4342]
[1736122471647,0.24725,3640.8,3640.5,0.24726]
[1736122471847,0.4388,3640.7,3640.6,0.24726]
[1736122479451,0.68606,3640.7,3640.4,1.10887]
[1736122479753,0.24727,3640.6,3640.4,0.8616]
[1736122480050,0.24727,3640.6,3640.4,1.10887]
[1736122480644,0.24726,3640.6,3640.4,0.68147]
[1736122480848,0.24726,3640.6,3640.3,0.24728]
[1736122481151,0.68605,3640.7,3640.4,0.24727]
[1736122483448,0.68605,3640.7,3640.4,0.66957]
[1736122483849,0.24726,3640.6,3640.4,0.4223]
[1736122484055,0.68606,3640.7,3640.4,0.66957]
[1736122486753,0.4388,3640.7,3640.5,0.24727]
[1736122486954,0.68605,3640.7,3640.5,0.24727]
[1736122487553,0.4388,3640.7,3640.5,0.24727]
[1736122489155,3.2078,3640.6,3640.4,0.24727]
[1736122489460,3.2078,3640.6,3640.5,0.24727]
[1736122491460,3.2078,3640.6,3640.4,0.24727]
[1736122493459,3.45506,3640.6,3640.3,0.24728]
[1736122493961,3.45507,3640.6,3640.3,0.24728]
[1736122494158,0.24727,3640.5,3640.3,0.24728]
[1736122494762,0.4433,3640.4,3640.3,0.24728]
[1736122498975,0.4433,3640.4,3640.3,1.24363538]
[1736122500566,0.4433,3640.4,3640.3,0.24728]
[1736122503179,2.15728087,3640.8,3640.7,0.24725]
[1736122503477,2.15728087,3640.8,3640.7,1.24360538]
[1736122503683,2.15728087,3640.8,3640.7,2.23996076]
[1736122503879,2.15728087,3640.8,3640.7,2.10790538]
[1736122504180,2.15728087,3641.1,3641.0,0.24723]
[1736122504380,2.15728087,3641.1,3641.0,2.23994076]
[1736122505672,3.2078,3641.4,3641.3,0.24721]
[1736122505873,3.2078,3641.4,3641.3,0.99635538]
[1736122506078,3.2078,3641.4,3641.1,1.24357538]
[1736122506381,0.4457,3641.3,3641.1,1.24357538]
[1736122506578,0.4457,3641.3,3641.1,0.99635538]
[1736122506779,0.4457,3641.3,3641.2,0.24722]
[1736122506980,3.2078,3641.4,3641.3,0.24721]
[1736122507683,3.2078,3641.4,3641.3,1.13701]
[1736122508182,3.2078,3641.4,3641.3,0.4477]
[1736122508377,3.2078,3641.4,3641.0,4.3093474]
[1736122508584,3.2078,3641.4,3641.0,4.7570474]
[1736122508783,3.2078,3641.4,3641.1,0.24722]
[1736122509083,3.2078,3641.4,3641.0,4.7570474]
[1736122509084,0.24721,3641.3,3641.0,4.5565774]
[1736122509283,0.4428,3641.2,3641.0,4.3093474]
[1736122509584,0.24723,3641.1,3641.0,4.3093474]
[1736122509777,0.4428,3641.2,3640.8,5.3763474]
[1736122509778,0.24724,3640.9,3640.8,5.3763474]
[1736122509978,3.45504,3640.9,3640.8,4.3093474]
[1736122510684,3.2078,3640.9,3640.8,4.3093474]
[1736122511185,6.87242131,3640.9,3640.7,0.24725]
[1736122511384,0.4381,3640.8,3640.7,0.24725]
[1736122512284,2.59561305,3640.8,3640.7,0.24725]
[1736122515384,2.59561305,3640.8,3640.6,0.24726]
[1736122515581,0.4381,3640.8,3640.6,0.24726]
[1736122515784,0.4381,3640.8,3640.5,4.3093474]
[1736122515982,0.4381,3640.8,3640.7,0.24725]
[1736122516686,2.59561305,3640.8,3640.7,0.24725]
[1736122516989,2.59561305,3640.8,3640.5,0.24727]
[1736122517188,2.59561305,3640.8,3640.6,0.24726]
[1736122517686,2.59561305,3640.8,3640.7,0.24725]
[1736122518987,2.59561305,3640.8,3640.6,0.24726]
[1736122519187,2.59561305,3640.8,3640.7,0.24725]
[1736122520388,2.59561305,3640.8,3640.4,4.3093474]
[1736122520787,2.59561305,3640.8,3640.7,0.24725]
[1736122521290,0.4381,3640.8,3640.7,0.24725]
[1736122522684,2.59660239,3640.8,3640.7,0.24725]
[1736122523089,2.59660239,3640.8,3640.4,4.3093474]
[1736122523285,0.24725,3640.7,3640.4,4.5566174]
[1736122523489,0.4104,3640.6,3640.4,4.5566174]
[1736122523888,0.24727,3640.5,3640.4,4.3093474]
[1736122524082,3.45507,3640.5,3640.4,4.3093474]
[1736122525892,6.69099131,3640.5,3640.2,0.24728]
[1736122526094,0.4176,3640.4,3640.2,0.24728]
[1736122526581,0.66488,3640.4,3640.2,0.24728]
[1736122526787,2.15770008,3640.3,3640.2,0.24728]
[1736122527189,2.15770008,3640.3,3640.1,0.24729]
[1736122527388,0.4296,3640.2,3640.1,0.24729]
[1736122528891,0.67689,3640.2,3640.0,0.2473]
[1736122529392,0.67689,3640.2,3639.9,4.3093474]
[1736122529695,0.2473,3640.1,3639.9,4.3093474]
[1736122529896,0.4259,3640.0,3639.8,0.24731]
[1736122530090,0.4259,3640.0,3639.7,4.3093474]
[1736122530291,0.4107,3639.9,3639.8,0.24731]
[1736122532699,0.4107,3639.9,3639.7,4.5566574]
[1736122533093,0.4107,3639.9,3639.8,0.24731]
[1736122533697,0.4107,3639.9,3639.6,7.5171474]
[1736122533896,0.4107,3639.9,3639.7,0.24732]
[1736122535495,0.4107,3639.9,3639.6,7.5171474]
[1736122535695,0.24732,3639.8,3639.6,4.3093474]
[1736122536000,0.65962,3639.8,3639.6,4.3093474]
[1736122536691,0.65962,3639.8,3639.5,6.73044582]
[1736122536892,0.24732,3639.7,3639.4,4.9904874]
[1736122537100,0.67953,3639.6,3639.4,4.7431474]
[1736122537294,0.4322,3639.6,3639.4,4.9904874]
[1736122537501,3.45513,3639.5,3639.4,4.3093474]
[1736122538101,3.45513,3639.5,3639.2,4.5566974]
[1736122538398,0.4061,3639.4,3639.3,0.24735]
[1736122538594,0.4061,3639.4,3639.2,4.3093474]
[1736122538902,0.24735,3639.3,3639.2,4.3093474]
[1736122539896,0.4061,3639.4,3638.8,4.3093474]
[1736122540201,0.24737,3638.9,3638.8,4.3093474]
[1736122540603,0.419,3639.0,3638.8,4.3093474]
[1736122540803,0.66637,3639.0,3638.8,4.3093474]
[1736122541000,0.4061,3638.9,3638.8,4.3093474]
[1736122541203,0.4061,3638.9,3638.8,4.5567174]
[1736122541500,0.4061,3638.9,3638.8,0.24737]
[1736122542495,2.15770008,3639.4,3638.7,5.41432157]
[1736122542694,2.15770008,3639.4,3639.3,0.24734]
[1736122543499,3.2078,3639.5,3639.1,1.312]
[1736122543897,3.45513,3639.5,3639.2,0.24734]
[1736122544799,0.24733,3639.4,3639.1,0.24735]
[1736122544998,0.24733,3639.4,3638.8,0.8562]
[1736122545314,0.24734,3639.3,3638.8,0.8562]
[1736122545503,0.24734,3639.3,3639.0,0.24736]
[1736122545504,0.4419,3639.2,3639.0,0.24736]
[1736122545708,0.889,3639.2,3639.0,0.24736]
[1736122545902,0.4453,3639.1,3639.0,0.24736]
[1736122547309,0.69266,3639.1,3638.8,1.10357]
[1736122547606,0.24736,3639.0,3638.8,0.24737]
[1736122547805,3.90046,3639.1,3638.6,0.24739]
[1736122548003,3.90046,3639.1,3638.5,0.8547]
[1736122548310,3.90046,3639.1,3638.8,0.24737]
[1736122549606,3.90046,3639.1,3638.5,0.8547]
[1736122549807,3.90046,3639.1,3638.9,0.24737]
[1736122550108,3.6531,3639.1,3638.5,0.8547]
[1736122550507,3.90045,3639.1,3638.9,0.24736]
[1736122552404,0.24736,3639.0,3638.5,0.8547]
[1736122553209,0.24736,3639.0,3638.7,0.24738]
[1736122553410,0.24736,3639.0,3638.5,0.8547]
[1736122553807,0.24736,3639.0,3638.7,0.24737]
[1736122554006,0.24736,3639.0,3638.8,0.24737]
[1736122555112,3.6531,3639.1,3638.5,0.8547]
[1736122555413,3.90046,3639.1,3638.9,0.24736]
[1736122556215,3.6531,3639.1,3638.5,0.8547]
[1736122556417,3.90046,3639.1,3638.5,0.8547]
[1736122556715,3.90046,3639.1,3638.9,0.24737]
[1736122557215,3.90046,3639.1,3638.8,0.24737]
[1736122557216,0.24736,3639.0,3638.8,0.24737]
[1736122561415,3.6531,3639.1,3638.6,0.24739]
[1736122561416,3.90046,3639.1,3638.6,0.24739]
[1736122561623,0.24736,3639.0,3638.8,0.24737]
[1736122563620,3.6531,3639.1,3638.5,0.8547]
[1736122563821,0.24737,3638.9,3638.7,0.24738]
[1736122564219,0.24738,3638.7,3638.5,0.66159]
[1736122564421,0.24738,3638.8,3638.6,0.24739]
[1736122564817,0.4128,3638.7,3638.6,0.24739]
[1736122565019,0.4128,3638.7,3638.3,3.6362]